{"text_format":"1","workbook":"xlsx","n_sheets":4,"sheets":["CLASSIFICAÇÃO","jan2026","fev2026","mar2026"],"not_rendered":{"charts":0,"images":2,"macros":1,"external_links":0,"defined_names":1,"comments":0,"pivot_tables":0},"unopened":[],"bounds":{"document_bytes":16777216,"sheet_cells":100000,"rows_first":2000,"rows_last":500,"rows_between":2000,"halvings":0,"cell_chars":16384,"cell_head_chars":4096},"cells_cut":0,"cells_raw":0,"read":"whole","date_system":"1900"}

{"sheet":"CLASSIFICAÇÃO","index":0,"n_rows":123,"n_cols":5,"rows_kept":123,"cut":false,"hidden":false,"merged":[[0,0,0,4],[1,0,1,4]]}
["CLASSIFICAÇÃO GERAL ACPA – TEMPORADA DE VERÃO 2026 SÁBADO"]
["COLEIRO FIBRA","Pássaro","Proprietário","Origem","Pontos"]
["POSIÇÃO","NOME DO PÁSSARO","NOME DO PROPRIETÁRIO","ORIGEM (CIDADE)","PONTUAÇÃO"]
["1º","MÁGICO","ILSON","SÃO JOSÉ",{"$f":"28+23+30+28+28+28+26+23+26+26+24","v":290}]
["2º","MACACO","ILSON","SÃO JOSÉ",{"$f":"26+28+28+30+30+30+30","v":202}]
["3º","PIX","ILSON","SÃO JOSÉ",{"$f":"19+13+26+20+26+28+26","v":158}]
["4º","TENEBROSO","DANILO MOREIRA","TRÊS RIOS",{"$f":"19+23+17+20+15+19+13","v":126}]
["5º","DIAMANTE","ILSON","SÃO JOSÉ",{"$f":"24+28+24+28","v":104}]
["6º","INVOCADO","ANDRÉ FREITAS","PETRÓPOLIS",{"$f":"16+26+20+22+17","v":101}]
["7º","DUBAI","WILLIAN","TRÊS RIOS",{"$f":"20+26+17+23","v":86}]
["8º","TRÓIA","BRUNO","TRÊS RIOS",{"$f":"21+19+14+28","v":82}]
["9º","JÓIA RARA","LEVI","TRÊS RIOS",{"$f":"23+21+23+14","v":81}]
["10º","POLÊMICO","CT LIMA/MATHEUS","PARAÍBA DO SUL",{"$f":"24+18+20+15","v":77}]
["11º","THANOS","SILAS FLÁVIO","TRÊS RIOS",{"$f":"14+18+22+14","v":68}]
["12º","BRAD PIT","FELIPE ROCHA","TRÊS RIOS",{"$f":"26+24+17","v":67}]
["13º","ALMEJADO","DJ RODRIGO","PARAÍBA DO SUL",{"$f":"28+16+21","v":65}]
["14º","BOYNA","SANDRINHO","TRÊS RIOS",{"$f":"21+24+18","v":63}]
["15º","CAVIAR","BRUNO","TRÊS RIOS",{"$f":"23+14+24","v":61}]
["16º","ROMÁRIO","CH FAMÍLIA MINGAL","PARAÍBA DO SUL",{"$f":"19+17+24","v":60}]
["17º","M'BAPE","DEIVID","JUIZ DE FORA",{"$f":"14+22+18","v":54}]
["18º","TROVÃO","MÁRCIO VINÍCIUS","LEVY GASPARIAN",{"$f":"13+19+22","v":54}]
["19º","BRUTAL","RAFAEL","PETRÓPOLIS",{"$f":"30+23","v":53}]
["20º","PELÉ","WILLIAM","TRÊS RIOS",{"$f":"23+30","v":53}]
["21º","MATRIX","EDGAR","TRÊS RIOS",{"$f":"22+14+15","v":51}]
["22º","ZIDANE","GUSTAVO/JHONATAS","PARAÍBA DO SUL",{"$f":"20+18+13","v":51}]
["23º","MALUQUINHO","GIBA","TRÊS RIOS",{"$f":"24+22","v":46}]
["24º","RAIO DE LUZ","DEIVID","JUIZ DE FORA",{"$f":"14+15+16","v":45}]
["25º","JÓIA RARA","BAIANO","VASSOURAS",{"$f":"22+21","v":43}]
["26º","FANTASMA","CLÓVIS/RODRIGO","TRÊS RIOS",{"$f":"22+19","v":41}]
["27º","ARCANJO","FAMÍLIA MINGAL","PARAÍBA DO SUL",{"$f":"21+18","v":39}]
["28º","FORASTEIRO","GABRIEL/WL FAMÍLIA MINGAL","PARAÍBA DO SUL",{"$f":"16+23","v":39}]
["29º","CAMARO","ANDRÉ LUIS","PARAÍBA DO SUL",{"$f":"18+18","v":36}]
["30º","TROVÃO","ALEXANDRE/ANA CARLA","SOUZA AGUIAR",{"$f":"16+19","v":35}]
["31º","RET","THIAGO/RONYELLE","TRÊS RIOS",{"$f":"20+13","v":33}]
["32º","LAMBORGUINE","RODRIGO","SÃO JOSÉ",{"$f":"13+19","v":32}]
["33º","FÚRIA","LUCAS ALVES","ITAIPAVA",{"$f":"18+13","v":31}]
["34º","GAGUINHO","JONAS","TRÊS RIOS",{"$f":"14+17","v":31}]
["35º","EXPRESSO","RAUANI VALLE","TRÊS RIOS",30]
["36º","FAVELA","CABRITO","MATIAS BARBOSA",30]
["37º","MALIBÚ","PABLO","ITAIPAVA",30]
["38º","MASSACRE","CABRITO/GABRIEL","MATIAS BARBOSA",30]
["39º","V10","JUNINHO PACHECO","TRÊS RIOS",30]
["40º","VENON JÚNIOR","MURILO","TRÊS RIOS",{"$f":"15+15","v":30}]
["41º","VINGADOR","JUNINHO","TRÊS RIOS",30]
["42º","MAVERICK","JUNINHO/ANDRÉ","TRÊS RIOS/P. SUL",28]
["43º","PODEROSO","MARCELO GODINHO","PETRÓPOLIS",28]
["44º","ASAF","ANDRÉ","PARAÍBA DO SUL",26]
["45º","PANTERA NEGRA","PABLO","ITAIPAVA",26]
["46º","PITBULL","JOÃO MARCOS","AREAL",26]
["47º","GENERAL","CT LIMA/MATHEUS","PARAÍBA DO SUL",24]
["48º","MUTANTE","CH/CARLIM","PARAÍBA DO SUL",24]
["49º","RISCA-FACA","LEVI","TRÊS RIOS",24]
["50º","XEQUE-MATE","JHONATAS/GUSTAVO","PARAÍBA DO SUL",24]
["51º","BELATTOR","RAUANI VALLE","TRÊS RIOS",23]
["52º","BICO FILHO","CT LIMA","PARAÍBA DO SUL",23]
["53º","PORCARIA","CABRITO/GABRIEL","MATIAS BARBOSA",23]
["54º","ACESSO NEGADO","BRUNO LOPES","VASSOURAS",22]
["55º","ALUCINADO","JUNINHO","TRÊS RIOS",22]
["56º","BINHA PRETO","EULER","TRÊS RIOS",22]
["57º","FRANÇA","MANDÍBULA","PETRÓPOLIS",22]
["58º","XERIFE","RUAN","TRÊS RIOS",22]
["59º","ESPECIALISTA","DEIVID","JUIZ DE FORA",21]
["60º","FLECHA","RAUANI VALLE","TRÊS RIOS",21]
["61º","GUERREIRO","JOSENILTON","PARAÍBA DO SUL",21]
["62º","INCÔMODO","ANDRÉ FREITAS","PETRÓPOLIS",21]
["63º","METRALHA","RAUANI VALLE","TRÊS RIOS",21]
["64º","REVELAÇÃO","DANILO MOREIRA","TRÊS RIOS",21]
["65º","SANTA FÉ","LUIZ/DANIEL","JUIZ DE FORA",21]
["66º","ANIMAL","EULER","TRÊS RIOS",20]
["67º","ARCANJO","JORDAN","LEVY GASPARIAN",20]
["68º","CHOCALHO DE COBRA","LUCIMAR/LUIZ HENRIQUE","TRÊS RIOS",20]
["69º","LAMPIÃO","ZECA/LUÍS","CHIADOR",20]
["70º","MARRETA","BAIANO","VASSOURAS",20]
["71º","MELIODAS","JONAS","TRÊS RIOS",20]
["72º","DO BRONX","RAUANI VALLE","TRÊS RIOS",19]
["73º","FEROZ","SERGINHO","TRÊS RIOS",19]
["74º","OVERDOSE","BRUNO","VASSOURAS",19]
["75º","RARIDADE","GUSTAVO/RAYANE","PARAÍBA DO SUL",19]
["76º","GIBA CAMARO","SANDRINHO","TRÊS RIOS",18]
["77º","MALUQUINHO","WELLINTON","AREAL",18]
["78º","PAVAROTTI","JORDAN/GIOVANNE","LEVY GASPARIAN",18]
["79º","RENEGADO","GABRIEL","PETRÓPOLIS",18]
["80º","DONO DA FESTA","MAGNO","RIO DAS FLORES",17]
["81º","EL LOUCO","JOSÉ SÉRGIO/RAFAEL","PARAÍBA DO SUL",17]
["82º","MATRIX","REGINALDO","PETRÓPOLIS",17]
["83º","MESTRE","FLÁVIO","TRÊS RIOS",17]
["84º","NEXTEL","NATHAN","LEVY GASPARIAN",17]
["85º","SOBREVIVENTE","WL FAMÍLIA MINGAL/JU","PARAÍBA DO SUL",17]
["86º","TOURO","JHONATAS/GUSTAVO","PARAÍBA DO SUL",17]
["87º","ALMIRANTE","JONAS","PARAÍBA DO SUL",16]
["88º","BOB LEE","DEIVID","JUIZ DE FORA",16]
["89º","CAPOEIRA","BAIANO","VASSOURAS",16]
["90º","DINAMITE","JOSÉ ALVES","SANTOS DUMONT",16]
["91º","GARGALHADA","CICINHO","PARAÍBA DO SUL",16]
["92º","GUERREIRO","ANTÔNIO MENEGUIT","CACHOEIRA DE MACACU",16]
["93º","RAFAH","UILIAN","TRÊS RIOS",16]
["94º","TENEBROSO","JÚLIO CÉSAR","TRÊS RIOS",16]
["95º","CARA PRETA","VANOFILSON","TRÊS RIOS",15]
["96º","CORINGA","ANTÔNIO MENEGUIT","CACHOEIRA DE MACACU",15]
["97º","MAGO NEGRO","CLOVIS/RODRIGO","TRÊS RIOS",15]
["98º","MATUÊ","LOIRINHO/DOMINGOS","PARAÍBA DO SUL",15]
["99º","PREDADOR","MAGNO","RIO DAS FLORES",15]
["100º","SHEIK","BAIANO","VASSOURAS",15]
["101º","ZICO","ALEX LAMA","PARAÍBA DO SUL",15]
["102º","?","JEFERSON","PARAÍBA DO SUL",14]
["103º","FREE FIRE","JANDERSON","TRÊS RIOS",14]
["104º","MARCÃO","CT LIMA/MATHEUS","PARAÍBA DO SUL",14]
["105º","VARADÃO","RAPHAEL","MATIAS BARBOSA",14]
["106º","BICHO DOIDO","EDUARDO","TRÊS RIOS",13]
["107º","BOOB GOODY","EULER","TRÊS RIOS",13]
["108º","EDWARD ED","OTONIEL","TRÊS RIOS",13]
["109º","GARGALHADA","MATHEUS/IVERSON","TRÊS RIOS",13]
["110º","MASSACRE","HENRIQUE","PARAÍBA DO SUL",13]
["111º","ROYAL SALUTE","JOÃO PEDRO","VASSOURAS",13]
["112º"]
["113º"]
["114º"]
["115º"]
["116º"]
["117º"]
["118º"]
["119º"]
["120º"]

{"sheet":"jan2026","index":1,"n_rows":42,"n_cols":34,"rows_kept":42,"cut":false,"hidden":false,"merged":[[0,0,0,5],[0,7,0,12],[0,14,0,19],[0,21,0,26],[0,28,0,33]]}
["03/01/2026 (SÁBADO)",null,null,null,null,null,null,"10/01/2026 (SÁBADO)",null,null,null,null,null,null,"17/01/2026 (SÁBADO)",null,null,null,null,null,null,"24/01/2026 (SÁBADO)",null,null,null,null,null,null,"28/01/2026 (SÁBADO)"]
["POS.","PÁSSARO","PROPRIETÁRIO","ORIGEM","CANTOS","PONTOS",null,"POS.","PÁSSARO","PROPRIETÁRIO","ORIGEM","CANTOS","PONTOS",null,"POS.","PÁSSARO","PROPRIETÁRIO","ORIGEM","CANTOS","PONTOS",null,"POS.","PÁSSARO","PROPRIETÁRIO","ORIGEM","CANTOS","PONTOS",null,"POS.","PÁSSARO","PROPRIETÁRIO","ORIGEM","CANTOS","PONTOS"]
["1º","EXPRESSO","RAUANI VALLE","TRÊS RIOS",214,30,null,"1º","V10","JUNINHO PACHECO","TRÊS RIOS",224,30,null,"1º","MÁGICO","ILSON","SÃO JOSÉ",193,30,null,"1º","MACACO","ILSON","SÃO JOSÉ",253,30,null,"1º","FAVELA","CABRITO","MATIAS BARBOSA",220,30]
["2º","MÁGICO","ILSON","SÃO JOSÉ",196,28,null,"2º","MACACO","ILSON","SÃO JOSÉ",206,28,null,"2º","MACACO","ILSON","SÃO JOSÉ",175,28,null,"2º","MÁGICO","ILSON","SÃO JOSÉ",186,28,null,"2º","MAVERICK","JUNINHO/ANDRÉ","TRÊS RIOS/P. SUL",185,28]
["3º","MACACO","ILSON","SÃO JOSÉ",193,26,null,"3º","ASAF","ANDRÉ","PARAÍBA DO SUL",190,26,null,"3º","INVOCADO","ANDRÉ FREITAS","PETRÓPOLIS",137,26,null,"3º","BRAD PIT","FELIPE ROCHA","TRÊS RIOS",153,26,null,"3º","DUBAI","WILLIAM","TRÊS RIOS",177,26]
["4º","POLÊMICO","CT LIMA/MATHEUS","PARAÍBA DO SUL",177,24,null,"4º","MALUQUINHO","GIBA","TRÊS RIOS",176,24,null,"4º","BOYNA","SANDRINHO","TRÊS RIOS",130,24,null,"4º","ROMÁRIO","CH FAMÍLIA MINGAL","PARAÍBA DO SUL",150,24,null,"4º","MUTANTE","CH/CARLIM","PARAÍBA DO SUL",162,24]
["5º","BICO FILHO","CT LIMA","PARAÍBA DO SUL",161,23,null,"5º","MÁGICO","ILSON","SÃO JOSÉ",160,23,null,"5º","BELATTOR","RAUANI VALLE","TRÊS RIOS",121,23,null,"5º","FORASTEIRO","WL FAMÍLIA MINGAL/GABRIEL","PARAÍBA DO SUL",140,23,null,"5º","CAVIAR","BRUNO","TRÊS RIOS",154,23]
["6º","MATRIX","EDGAR","TRÊS RIOS",154,22,null,"6º","FANTASMA","CLÓVIS/RODRIGO","TRÊS RIOS",160,22,null,"6º","ACESSO NEGADO","BRUNO LOPES","VASSOURAS",120,22,null,"6º","ALUCINADO","JUNINHO","TRÊS RIOS",131,22,null,"6º","JÓIA RARA","BAIANO","VASSOURAS",151,22]
["7º","BOYNA","SANDRINHO","TRÊS RIOS",143,21,null,"7º","GUERREIRO","JOSENILTON","PARAÍBA DO SUL",150,21,null,"7º","REVELAÇÃO","DANILO MOREIRA","TRÊS RIOS",117,21,null,"7º","ESPECIALISTA","DEIVID","JUIZ DE FORA",130,21,null,"7º","ARCANJO","FAMÍLIA MINGAL","PARAÍBA DO SUL",149,21]
["8º","MELIODAS","JONAS","TRÊS RIOS",140,20,null,"8º","DUBAI","WILLIAN","TRÊS RIOS",139,20,null,"8º","ZIDANE","GUSTAVO/JHONATA","PARAÍBA DO SUL",112,20,null,"8º","INVOCADO","RODRIGO/ANDRÉ","PETRÓPOLIS",112,20,null,"8º","CHOCALHO DE COBRA","LUCIMAR/LUIZ HENRIQUE","TRÊS RIOS",142,20]
["9º","ROMÁRIO","CARLOS HENRIQUE","PARAÍBA DO SUL",138,19,null,"9º","TENEBROSO","JONAS","TRÊS RIOS",138,19,null,"9º","FANTASMA","CLOVIS/RODRIGO","TRÊS RIOS",111,19,null,"9º","FEROZ","SERGINHO","TRÊS RIOS",112,19,null,"9º","PIX","PINCEL","TRÊS RIOS",128,19]
["10º","RENEGADO","GABRIEL","PETRÓPOLIS",137,18,null,"10º","POLÊMICO","MINGAL/MATHEUS","PARAÍBA DO SUL",132,18,null,"10º","FÚRIA","LUCAS ALVES","ITAIPAVA",106,18,null,"10º","BOYNA","SANDRINHO","TRÊS RIOS",110,18,null,"10º","PAVAROTTI","JORDAN/GIOVANNE","LEVY GASPARIAN",126,18]
["11º","NEXTEL","NATHAN","LEVY GASPARIAN",132,17,null,"11º","ROMÁRIO","CH MINGAL","PARAÍBA DO SUL",129,17,null,"11º","TOURO","JHONATAS/GUSTAVO","PARAÍBA DO SUL",103,17,null,"11º","EL LOUCO","JOSÉ SÉRGIO/RAFAEL","PARAÍBA DO SUL",109,17,null,"11º","GAGUINHO","JONAS","TRÊS RIOS",126,17]
["12º","FORASTEIRO","GABRIEL/WL FAMÍLIA MINGAL","PARAÍBA DO SUL",121,16,null,"12º","INVOCADO","ANDRÉ FREITAS","PETRÓPOLIS",124,16,null,"12º","ALMIRANTE","JONAS","PARAÍBA DO SUL",98,16,null,"12º","GARGALHADA","CICINHO","PARAÍBA DO SUL",107,16,null,"12º","CAPOEIRA","BAIANO","VASSOURAS",123,16]
["13º","MATUÊ","LOIRINHO/DOMINGOS","PARAÍBA DO SUL",118,15,null,"13º","VENON JR","MURILO","TRÊS RIOS",120,15,null,"13º","CARA PRETA","VANOFILSON","TRÊS RIOS",95,15,null,"13º","MAGO NEGRO","CLOVIS/RODRIGO","TRÊS RIOS",107,15,null,"13º","RAIO DE LUZ","DEIVID","JUIZ DE FORA",123,15]
["14º","GAGUINHO","JONAS","TRÊS RIOS",118,14,null,"14º","CAVIAR","BRUNO","TRÊS RIOS",120,14,null,"14º","MATRIX","EDGAR","TRÊS RIOS",94,14,null,"14º","RAIO DE LUZ","DEIVID","JUIZ DE FORA",103,14,null,"14º","M'BAPE","DEIVID","JUIZ DE FORA",112,14]
["15º","EDWARD ED","OTONIEL","TRÊS RIOS",115,13,null,"15º","FÚRIA","LUCAS ALVES","-",118,13,null,"15º","ROYAL SALUTE","JOÃO PEDRO","VASSOURAS",92,13,null,"15º","MASSACRE","HENRIQUE","PARAÍBA DO SUL",101,13,null,"15º","TROVÃO","MÁRCIO VINÍCIUS","LEVY GASPARIAN",111,13]
["16º","RET","THIAGO/RONYELLE","TRÊS RIOS",110,null,null,"16º","PRESTÍGIO","RUAN BARRINHA","PARAÍBA DO SUL",117,null,null,"16º","RED","THIAGO","TRÊS RIOS",90,null,null,"16º","FÚRIA","LUCAS ALVES","ITAIPAVA",93,null,null,"16º","JÓIA RARA","LEVY","TRÊS RIOS",109]
["17º","FORASTEIRO 2","CH FAMÍLIA MINGAL","PARAÍBA DO SUL",108,null,null,"17º","220 VOLTS","JÚLIO CÉSAR","PETRÓPOLIS",113,null,null,"17º","LOCOMOTIVA","CLOVIS/RODRIGO","TRÊS RIOS",81,null,null,"17º","TERRORISTA","ANDRÉ FREITAS","PETRÓPOLIS",92,null,null,"17º","ROYAL SALUTE","JOÃO PEDRO","VASSOURAS",103]
["18º","CEIFADOR","TATIN","TRÊS RIOS",107,null,null,"18º","PÉROLA NEGRA","FAMÍLIA HONORATO","PARAÍBA DO SUL",112,null,null,"18º","CEIFADOR","TATIN","TRÊS RIOS",78,null,null,"18º","BRUXO","CT LIMA/MATHEUS","PARAÍBA DO SUL",87,null,null,"18º","DELEGADO","ANDRÉ FREITAS","PETRÓPOLIS",103]
["19º","ABENÇOADO","RAUANI VALLE","TRÊS RIOS",103,null,null,"19º","BOYNA","SANDRINHO","TRÊS RIOS",110,null,null,"19º","FÉ","CASSIO","TRÊS RIOS",56,null,null,"19º","ABISMO","GABRIEL MARTINS/RICARDINHO","PARAÍBA DO SUL",80,null,null,"19º","GENERAL","CT LIMA/MATHEUS","PARAÍBA DO SUL",92]
["20º","FILHOTE REI DA RUA","GUSTAVO/RAYANE","PARAÍBA DO SUL",101,null,null,"20º","XEQUE-MATE","EULER","TRÊS RIOS",108,null,null,"20º","JORJA","ARTUR","TRÊS RIOS",53,null,null,"20º","ALMIRANTE","JONAS","PARAÍBA DO SUL",80,null,null,"20º","SINISTRO","LUCAS","TRÊS RIOS",90]
["21º","THOR","NATHAN","LEVY GASPARIAN",100,null,null,"21º","DIMENOR","LEONARDO","PARAÍBA DO SUL",106,null,null,"21º","POMBO","FÁBIO","TRÊS RIOS",35,null,null,"21º","RET","THIAGO/RONYELLE","TRÊS RIOS",70,null,null,"21º","GARGALHADA","CICINHO","PARAÍBA DO SUL",88]
["22º","PIVETE","LEANDRO","TRÊS RIOS",100,null,null,"22º","GUERREIRO","ANTÔNIO","CACHOEIRAS DE MACACU",103,null,null,"22º","380","SEKINHO","TRÊS RIOS",30,null,null,"22º","GUERREIRO","ANTÔNIO MENEGUIT","CACHOEIRAS DE MACACU",68,null,null,"22º","FEROZ","SERGINHO","TRÊS RIOS",87]
["23º","PRESTÍGIO","RUAN BARRINHA","PARAÍBA DO SUL",90,null,null,"23º","LOCOMOTIVA","CLOVIS/RODRIGO","TRÊS RIOS",92,null,null,"23º","TROVÃO","JORDAN","LEVY GASPARIAN",20,null,null,"23º","CEIFADOR","TATIN","TRÊS RIOS",67,null,null,"23º","MCDONALD'S","JESSÉ JÚNIOR","TRÊS RIOS",86]
["24º","THOR","MATHEUS/CT LIMA","PARAÍBA DO SUL",86,null,null,"24º","ANIMAL","DANILO MOREIRA","TRÊS RIOS",90,null,null,"24º","COME PENA","JOSELEO","TRÊS RIOS",19,null,null,"24º","FILHOTE REI DA RUA","GUSTAVO/RAYANE","PARAÍBA DO SUL",60,null,null,"24º","AGRESSIVO","DOUGLAS","VASSOURAS",81]
["25º","TERRORISTA","BRUNO/RODRIGO","PETRÓPOLIS",84,null,null,"25º","SAMU","RAUANI VALLE","TRÊS RIOS",74,null,null,"25º",null,null,null,null,null,null,"25º","MAGNATA","VALDO","TRÊS RIOS",60,null,null,"25º","RENEGADO","HENRIQUE","ANTA",73]
["26º","PESADELO","HENRIQUE","ANTA",74,null,null,"26º","ABUTRE","F. HONORATO","PARAÍBA DO SUL",70,null,null,"26º",null,null,null,null,null,null,"26º","CARA PRETA","VANDEILSON","TRÊS RIOS",50,null,null,"26º","GARNIZÉ","RODRIGO DE SOUZA","PARAÍBA DO SUL",71]
["27º","CARA PRETA","VANDEILSON","TRÊS RIOS",72,null,null,"27º","CARA PRETA","VANDEILSON","TRÊS RIOS",69,null,null,"27º",null,null,null,null,null,null,"27º","FANTÁSTICO","EDUARDO","TRÊS RIOS",42,null,null,"27º","TAGARELA","FAMÍLIA MINGAL/MATHEUS","PARAÍBA DO SUL",38]
["28º","CABO FRIO","JESSÉ JÚNIOR","TRÊS RIOS",66,null,null,"28º","SINISTRO","ANDRÉ FREITAS","PETRÓPOLIS",67,null,null,"28º",null,null,null,null,null,null,"28º",null,null,null,null,null,null,"28º"]
["29º","ESKANK","?","TRÊS RIOS",63,null,null,"29º",null,null,null,null,null,null,"29º",null,null,null,null,null,null,"29º",null,null,null,null,null,null,"29º"]
["30º","PATRÃO","WL/JOÃO VITOR","PARAÍBA DO SUL",48,null,null,"30º",null,null,null,null,null,null,"30º",null,null,null,null,null,null,"30º",null,null,null,null,null,null,"30º"]
["31º","SORTE","FÁBIO","TRÊS RIOS",47,null,null,"31º",null,null,null,null,null,null,"31º",null,null,null,null,null,null,"31º",null,null,null,null,null,null,"31º"]
["32º",null,null,null,null,null,null,"32º",null,null,null,null,null,null,"32º",null,null,null,null,null,null,"32º",null,null,null,null,null,null,"32º"]
["33º",null,null,null,null,null,null,"33º",null,null,null,null,null,null,"33º",null,null,null,null,null,null,"33º",null,null,null,null,null,null,"33º"]
["34º",null,null,null,null,null,null,"34º",null,null,null,null,null,null,"34º",null,null,null,null,null,null,"34º",null,null,null,null,null,null,"34º"]
["35º",null,null,null,null,null,null,"35º",null,null,null,null,null,null,"35º",null,null,null,null,null,null,"35º",null,null,null,null,null,null,"35º"]
["36º",null,null,null,null,null,null,"36º",null,null,null,null,null,null,"36º",null,null,null,null,null,null,"36º",null,null,null,null,null,null,"36º"]
["37º",null,null,null,null,null,null,"37º",null,null,null,null,null,null,"37º",null,null,null,null,null,null,"37º",null,null,null,null,null,null,"37º"]
["38º",null,null,null,null,null,null,"38º",null,null,null,null,null,null,"38º",null,null,null,null,null,null,"38º",null,null,null,null,null,null,"38º"]
["39º",null,null,null,null,null,null,"39º",null,null,null,null,null,null,"39º",null,null,null,null,null,null,"39º",null,null,null,null,null,null,"39º"]
["40º",null,null,null,null,null,null,"40º",null,null,null,null,null,null,"40º",null,null,null,null,null,null,"40º",null,null,null,null,null,null,"40º"]

{"sheet":"fev2026","index":2,"n_rows":42,"n_cols":28,"rows_kept":42,"cut":false,"hidden":false,"merged":[[0,0,0,6],[0,8,0,13],[0,15,0,20],[0,22,0,27]]}
["07/02/2026 (SÁBADO)",null,null,null,null,null,null,null,"14/02/2026 (SÁBADO)",null,null,null,null,null,null,"21/02/2026 (SÁBADO)",null,null,null,null,null,null,"28/02/2026 (SÁBADO)"]
["POS.","PÁSSARO","PROPRIETÁRIO","ORIGEM","VASS.","CANTOS","PONTOS",null,"POS.","PÁSSARO","PROPRIETÁRIO","ORIGEM","CANTOS","PONTOS",null,"POS.","PÁSSARO","PROPRIETÁRIO","ORIGEM","CANTOS","PONTOS",null,"POS.","PÁSSARO","PROPRIETÁRIO","ORIGEM","CANTOS","PONTOS"]
["1º","MACACO","ILSON","SÃO JOSÉ",164,226,30,null,"1º","MACACO","ILSON","SÃO JOSÉ",288,30,null,"1º","MACACO","ILSON","SÃO JOSÉ",228,30,null,"1º","PELÉ","WILLIAM","TRÊS RIOS",218,30]
["2º","MÁGICO","ILSON","SÃO JOSÉ",142,203,28,null,"2º","MÁGICO","ILSON","SÃO JOSÉ",229,28,null,"2º","ALMEJADO","DJ RODRIGO","PARAÍBA DO SUL",209,28,null,"2º","PODEROSO","MARCELO GODINHO","PETRÓPOLIS",206,28]
["3º","PITBULL","JOÃO MARCOS","AREAL",105,165,26,null,"3º","PIX","PINCEL","TRÊS RIOS",173,26,null,"3º","MÁGICO","ILSON","SÃO JOSÉ",179,26,null,"3º","PIX","PINCEL","TRÊS RIOS",200,26]
["4º","CAVIAR","BRUNO","TRÊS RIOS",110,161,24,null,"4º","XEQUE-MATE","JHONATAS/GUSTAVO","PARAÍBA DO SUL",168,24,null,"4º","GENERAL","CT LIMA/MATHEUS","PARAÍBA DO SUL",162,24,null,"4º","DIAMANTE","ILSON","SÃO JOSÉ",198,24]
["5º","JÓIA RARA","LEVI","TRÊS RIOS",96,154,23,null,"5º","TENEBROSO","DANILO MOREIRA","TRÊS RIOS",137,23,null,"5º","PELÉ","WILLIAM","TRÊS RIOS",160,23,null,"5º","MÁGICO","ILSON","SÃO JOSÉ",196,23]
["6º","INVOCADO","ANDRÉ FREITAS","PETRÓPOLIS",95,151,22,null,"6º","MALUQUINHO","GIBA","TRÊS RIOS",136,22,null,"6º","M'BAPE","DEIVID","JUIZ DE FORA",157,22,null,"6º","FRANÇA","MANDÍBULA","PETRÓPOLIS",154,22]
["7º","METRALHA","RAUANI VALLE","TRÊS RIOS",100,146,21,null,"7º","INCÔMODO","ANDRÉ FREITAS","PETRÓPOLIS",115,21,null,"7º","TRÓIA","BRUNO","TRÊS RIOS",153,21,null,"7º","JÓIA RARA","LEVI","TRÊS RIOS",141,21]
["8º","LAMPIÃO","ZECA/LUÍS","CHIADOR",90,138,20,null,"8º","RET","THIAGO/RONYELLE","TRÊS RIOS",109,20,null,"8º","PIX","PINCEL","TRÊS RIOS",152,20,null,"8º","TENEBROSO","DANILO MOREIRA","TRÊS RIOS",140,20]
["9º","DO BRONX","RAUANI VALLE","TRÊS RIOS",117,134,19,null,"9º","RARIDADE","GUSTAVO/RAYANE","PARAÍBA DO SUL",105,19,null,"9º","OVERDOSE","BRUNO","VASSOURAS",139,19,null,"9º","TRÓIA","BRUNO","TRÊS RIOS",138,19]
["10º","MALUQUINHO","WELLINTON","AREAL",74,134,18,null,"10º","GIBA CAMARO","SANDRINHO","TRÊS RIOS",95,18,null,"10º","THANOS","SILAS FLÁVIO","TRÊS RIOS",130,18,null,"10º","ZIDANE","GUSTAVO/JHONATAS","PARAÍBA DO SUL",131,18]
["11º","SOBREVIVENTE","WL FAMÍLIA MINGAL/JU","PARAÍBA DO SUL",76,126,17,null,"11º","MESTRE","FLÁVIO","TRÊS RIOS",86,17,null,"11º","TENEBROSO","DANILO MOREIRA","TRÊS RIOS",118,17,null,"11º","INVOCADO","ANDRÉ FREITAS","PETRÓPOLIS",129,17]
["12º","RAIO DE LUZ","DEIVID","JUIZ DE FORA",102,124,16,null,"12º","RAFAH","UILIAN","TRÊS RIOS",83,16,null,"12º","DINAMITE","JOSÉ ALVES","SANTOS DUMONT",110,16,null,"12º","GUERREIRO","ANTÔNIO MENEGUIT","CACHOEIRA DE MACACU",123,16]
["13º","VENON JÚNIOR","MURILO","TRÊS RIOS",84,122,15,null,"13º","MATRIX","EDGAR","TRÊS RIOS",82,15,null,"13º","ZICO","ALEX LAMA","PARAÍBA DO SUL",107,15,null,"13º","PREDADOR","MAGNO","RIO DAS FLORES",117,15]
["14º","THANOS","SILAS FLÁVIO","TRÊS RIOS",80,122,14,null,"14º","FREE FIRE","JANDERSON","TRÊS RIOS",81,14,null,"14º","VARADÃO","RAPHAEL","MATIAS BARBOSA",104,14,null,"14º","?","JEFERSON","PARAÍBA DO SUL",117,14]
["15º","PIX","PINCEL","TRÊS RIOS",81,120,13,null,"15º","BICHO DOIDO","EDUARDO","TRÊS RIOS",70,13,null,"15º","BOOB GOODY","EULER","TRÊS RIOS",102,13,null,"15º","RET","THIAGO/RONYELLE","TRÊS RIOS",114,13]
["16º","SELVAGEM","JOSENILTON","PARAÍBA DO SUL",72,120,null,null,"16º","MULEKE","FAMÍLIA HONORATO","PARAÍBA DO SUL",54,null,null,"16º","MISTÉRIO","BRUNO","VASSOURAS",101,null,null,"16º","VENON JÚNIOR","MURILO","TRÊS RIOS",111]
["17º","PINOTE","DANILO MOREIRA","TRÊS RIOS",85,116,null,null,"17º",null,null,null,null,null,null,"17º","RARIDADE","GUSTAVO/RAYANE","PARAÍBA DO SUL",99,null,null,"17º","ZÉ INÁCIO","GUSTAVO/JHONATAS","PARAÍBA DO SUL",97]
["18º","PRESTÍGIO","RUAN","PARAÍBA DO SUL",83,115,null,null,"18º",null,null,null,null,null,null,"18º","FAVORITO","FAMÍLIA MINGAL","PARAÍBA DO SUL",94,null,null,"18º","I-30","JÚLIO CÉSAR","PETRÓPOLIS",93]
["19º","PIVETE","ALAN","PETRÓPOLIS",70,106,null,null,"19º",null,null,null,null,null,null,"19º","CALMA CALABRESO","CLOVIS/RODRIGO","TRÊS RIOS",80,null,null,"19º","APAGÃO","SANDRINHO","TRÊS RIOS",83]
["20º","ROMÁRIO","CH FAMÍLIA MINGAL","PARAÍBA DO SUL",71,105,null,null,"20º",null,null,null,null,null,null,"20º","CAMPEÃO","FÁBIO","TRÊS RIOS",74,null,null,"20º","?","JEFERSON","PARAÍBA DO SUL",66]
["21º","ANDROID","FAMÍLIA MINGAL","PARAÍBA DO SUL",77,101,null,null,"21º",null,null,null,null,null,null,"21º","WOLVERINE","JANDERSON","TRÊS RIOS",70,null,null,"21º","RAMBO","HENRIQUE","ANTA",65]
["22º","BOPE","VITOR MÁRCIO","TRÊS RIOS",95,97,null,null,"22º",null,null,null,null,null,null,"22º","TEMPESTADE AGRESSIVA","VICTOR","TRÊS RIOS",69,null,null,"22º","CAMPEÃO","FÁBIO","TRÊS RIOS",54]
["23º","PROFESSOR","GABRIEL MARTINS","PARAÍBA DO SUL",99,94,null,null,"23º",null,null,null,null,null,null,"23º","FÚRIA","CLODOALDO","TRÊS RIOS",49,null,null,"23º","JUSTICEIRO","GUSTAVO SALOMÃO","TRÊS RIOS",46]
["24º","X1","JANDERSON","TRÊS RIOS",71,94,null,null,"24º",null,null,null,null,null,null,"24º",null,null,null,null,null,null,"24º","MÁSCARA","REGINALDO","PETRÓPOLIS",46]
["25º","MATUÊ","LOIRINHO/DOMINGOS","PARAÍBA DO SUL",84,87,null,null,"25º",null,null,null,null,null,null,"25º",null,null,null,null,null,null,"25º","?","JEFERSON","PARAÍBA DO SUL",42]
["26º","CORINGA","SAMIRES","PARAÍBA DO SUL",84,87,null,null,"26º",null,null,null,null,null,null,"26º",null,null,null,null,null,null,"26º"]
["27º","REVELAÇÃO","BUIU","TRÊS RIOS",75,87,null,null,"27º",null,null,null,null,null,null,"27º",null,null,null,null,null,null,"27º"]
["28º","MCDONALD'S","JESSÉ JÚNIOR","TRÊS RIOS",67,86,null,null,"28º",null,null,null,null,null,null,"28º",null,null,null,null,null,null,"28º"]
["29º","MUTANTE","CH FAMÍLIA MINGAL","PARAÍBA DO SUL",122,85,null,null,"29º",null,null,null,null,null,null,"29º",null,null,null,null,null,null,"29º"]
["30º","CARA PRETA","RAFAEL DE SOUZA","PARAÍBA DO SUL",69,72,null,null,"30º",null,null,null,null,null,null,"30º",null,null,null,null,null,null,"30º"]
["31º","18K","JÚNIOR FORTES","SANTOS DUMONT",53,37,null,null,"31º",null,null,null,null,null,null,"31º",null,null,null,null,null,null,"31º"]
["32º",null,null,null,null,null,null,null,"32º",null,null,null,null,null,null,"32º",null,null,null,null,null,null,"32º"]
["33º",null,null,null,null,null,null,null,"33º",null,null,null,null,null,null,"33º",null,null,null,null,null,null,"33º"]
["34º",null,null,null,null,null,null,null,"34º",null,null,null,null,null,null,"34º",null,null,null,null,null,null,"34º"]
["35º",null,null,null,null,null,null,null,"35º",null,null,null,null,null,null,"35º",null,null,null,null,null,null,"35º"]
["36º",null,null,null,null,null,null,null,"36º",null,null,null,null,null,null,"36º",null,null,null,null,null,null,"36º"]
["37º",null,null,null,null,null,null,null,"37º",null,null,null,null,null,null,"37º",null,null,null,null,null,null,"37º"]
["38º",null,null,null,null,null,null,null,"38º",null,null,null,null,null,null,"38º",null,null,null,null,null,null,"38º"]
["39º",null,null,null,null,null,null,null,"39º",null,null,null,null,null,null,"39º",null,null,null,null,null,null,"39º"]
["40º",null,null,null,null,null,null,null,"40º",null,null,null,null,null,null,"40º",null,null,null,null,null,null,"40º"]

{"sheet":"mar2026","index":3,"n_rows":42,"n_cols":27,"rows_kept":42,"cut":false,"hidden":false,"merged":[[0,0,0,5],[0,7,0,12],[0,14,0,19],[0,21,0,26]]}
["07/03/2026 (SÁBADO)",null,null,null,null,null,null,"14/03/2026 (SÁBADO)",null,null,null,null,null,null,"21/03/2026 (SÁBADO)",null,null,null,null,null,null,"28/03/2026 (SÁBADO)"]
["POS.","PÁSSARO","PROPRIETÁRIO","ORIGEM","CANTOS","PONTOS",null,"POS.","PÁSSARO","PROPRIETÁRIO","ORIGEM","CANTOS","PONTOS",null,"POS.","PÁSSARO","PROPRIETÁRIO","ORIGEM","CANTOS","PONTOS",null,"POS.","PÁSSARO","PROPRIETÁRIO","ORIGEM","CANTOS","PONTOS"]
["1º","BRUTAL","RAFAEL","PETRÓPOLIS",253,30,null,"1º","MALIBÚ","PABLO","ITAIPAVA",213,30,null,"1º","VINGADOR","JUNINHO","TRÊS RIOS",291,30,null,"1º","MASSACRE","CABRITO/GABRIEL","MATIAS BARBOSA",230,30]
["2º","DIAMANTE","ILSON","SÃO JOSÉ",199,28,null,"2º","TRÓIA","BRUNO","TRÊS RIOS",190,28,null,"2º","PIX","ILSON","SÃO JOSÉ",232,28,null,"2º","DIAMANTE","ILSON","SÃO JOSÉ",207,28]
["3º","MÁGICO","ILSON","SÃO JOSÉ",199,26,null,"3º","PANTERA NEGRA","PABLO","ITAIPAVA",179,26,null,"3º","MÁGICO","ILSON","SÃO JOSÉ",204,26,null,"3º","PIX","ILSON","SÃO JOSÉ",204,26]
["4º","BRAD PIT","FELIPE ROCHA","TRÊS RIOS",175,24,null,"4º","RISCA-FACA","LEVI","TRÊS RIOS",170,24,null,"4º","DIAMANTE","ILSON","SÃO JOSÉ",185,24,null,"4º","MÁGICO","ILSON","SÃO JOSÉ",200,24]
["5º","JÓIA RARA","LEVI","TRÊS RIOS",175,23,null,"5º","BRUTAL","RAFAEL","PETRÓPOLIS",160,23,null,"5º","DUBAI","WILLIAM","TRÊS RIOS",167,23,null,"5º","PORCARIA","CABRITO/GABRIEL","MATIAS BARBOSA",150,23]
["6º","THANOS","SILAS FLÁVIO","TRÊS RIOS",165,22,null,"6º","TROVÃO","JUNINHO","TRÊS RIOS",159,22,null,"6º","BINHA PRETO","EULER","TRÊS RIOS",167,22,null,"6º","XERIFE","RUAN","TRÊS RIOS",147,22]
["7º","SANTA FÉ","LUIZ/DANIEL","JUIZ DE FORA",161,21,null,"7º","FLECHA","RAUANI VALLE","TRÊS RIOS",152,21,null,"7º","ALMEJADO","DJ RODRIGO","PARAÍBA DO SUL",161,21,null,"7º","JÓIA RARA","BAIANO","VASSOURAS",144,21]
["8º","ARCANJO","JORDAN","LEVY GASPARIAN",161,20,null,"8º","POLÊMICO","CT LIMA","PARAÍBA DO SUL",148,20,null,"8º","ANIMAL","EULER","TRÊS RIOS",153,20,null,"8º","MARRETA","BAIANO","VASSOURAS",142,20]
["9º","TROVÃO","MÁRCIO VINÍCIUS","LEVY GASPARIAN",159,19,null,"9º","TENEBROSO","DANILO MOREIRA","TRÊS RIOS",140,19,null,"9º","LAMBORGUINE","RODRIGO","SÃO JOSÉ",150,19,null,"9º","TROVÃO","ALEXANDRE/ANA CARLA","SOUZA AGUIAR",130,19]
["10º","ARCANJO","CT LIMA/MATHEUS","PARAÍBA DO SUL",151,18,null,"10º","M'BAPE","DEIVID","JUIZ DE FORA",122,18,null,"10º","CAMARO","ANDRÉ LUIS","PARAÍBA DO SUL",141,18,null,"10º","CAMARO","ANDRÉ LUIS","PARAÍBA DO SUL",130,18]
["11º","DUBAI","WILLIAM","TRÊS RIOS",144,17,null,"11º","DONO DA FESTA","MAGNO","RIO DAS FLORES",108,17,null,"11º","BRAD PIT","FELIPE ROCHA","TRÊS RIOS",138,17,null,"11º","MATRIX","REGINALDO","PETRÓPOLIS",128,17]
["12º","ALMEJADO","DJ RODRIGO","PARAÍBA DO SUL",143,16,null,"12º","BOB LEE","DEIVID","JUIZ DE FORA",105,16,null,"12º","TROVÃO","ALEXANDRE/ANA CARLA","SOUZA AGUIAR",135,16,null,"12º","TENEBROSO","JÚLIO CÉSAR","TRÊS RIOS",113,16]
["13º","TENEBROSO","DANILO MOREIRA","TRÊS RIOS",142,15,null,"13º","SHEIK","BAIANO","VASSOURAS",86,15,null,"13º","POLÊMICO","CT LIMA/MATHEUS","PARAÍBA DO SUL",122,15,null,"13º","CORINGA","ANTÔNIO MENEGUIT","CACHOEIRA DE MACACU",109,15]
["14º","TRÓIA","BRUNO","TRÊS RIOS",138,14,null,"14º","JÓIA RARA","LEVI","TRÊS RIOS",66,14,null,"14º","THANOS","SILAS FLÁVIO","TRÊS RIOS",118,14,null,"14º","MARCÃO","CT LIMA/MATHEUS","PARAÍBA DO SUL",109,14]
["15º","LAMBORGUINE","RODRIGO","SÃO JOSÉ",135,13,null,"15º","GARGALHADA","MATHEUS/IVERSON","TRÊS RIOS",60,13,null,"15º","TENEBROSO","DANILO MOREIRA","TRÊS RIOS",114,13,null,"15º","ZIDANE","GUSTAVO/JHONATAS","PARAÍBA DO SUL",100,13]
["16º","CORINGA","ANTÔNIO MENEGUIT","CACHOEIRA DE MACACU",130,null,null,"16º",null,null,null,null,null,null,"16º","JHON NETO","JEFFERSON","PARAÍBA DO SUL",109,null,null,"16º","PIVETE","ALAN","AREAL",95]
["17º","GUERREIRO","JEFFERSON","PARAÍBA DO SUL",129,null,null,"17º",null,null,null,null,null,null,"17º","PODEROSO CHEFINHO","MARCELO GODINHO","PETRÓPOLIS",107,null,null,"17º"]
["18º","PODEROSO CHEFINHO","MARCELO GODINHO","PETRÓPOLIS",128,null,null,"18º",null,null,null,null,null,null,"18º","GUERREIRO","JEFFERSON","PARAÍBA DO SUL",88,null,null,"18º"]
["19º","GENERAL","CT LIMA/MATHEUS","PARAÍBA DO SUL",125,null,null,"19º",null,null,null,null,null,null,"19º","71","SANDRINHO","TRÊS RIOS",79,null,null,"19º"]
["20º","FRANÇA","MANDÍBULA","PETRÓPOLIS",123,null,null,"20º",null,null,null,null,null,null,"20º","REI ARTHUR","ALEX LAMA","PARAÍBA DO SUL",68,null,null,"20º"]
["21º","PINOTE","EULER","TRÊS RIOS",120,null,null,"21º",null,null,null,null,null,null,"21º","CHARADA","VALDO","TRÊS RIOS",67,null,null,"21º"]
["22º","ATLAS","LUCAS","BEMPOSTA",120,null,null,"22º",null,null,null,null,null,null,"22º",null,null,null,null,null,null,"22º"]
["23º","BOB LEE","ALTAIDES","JUIZ DE FORA",114,null,null,"23º",null,null,null,null,null,null,"23º",null,null,null,null,null,null,"23º"]
["24º","TEI","ARTHUR ALEX LAMA","PARAÍBA DO SUL",108,null,null,"24º",null,null,null,null,null,null,"24º",null,null,null,null,null,null,"24º"]
["25º","PEGA FIRME","ITALO SANTOS","PARAÍBA DO SUL",106,null,null,"25º",null,null,null,null,null,null,"25º",null,null,null,null,null,null,"25º"]
["26º","BOPE","LOIRIN/DOMINGOS","PARAÍBA DO SUL",106,null,null,"26º",null,null,null,null,null,null,"26º",null,null,null,null,null,null,"26º"]
["27º","ROCK","SAULO","PARAÍBA DO SUL",103,null,null,"27º",null,null,null,null,null,null,"27º",null,null,null,null,null,null,"27º"]
["28º","MASSACRE","HENRIQUE","PARAÍBA DO SUL",103,null,null,"28º",null,null,null,null,null,null,"28º",null,null,null,null,null,null,"28º"]
["29º","INVOCADO","ANDRÉ FREITAS","PETRÓPOLIS",100,null,null,"29º",null,null,null,null,null,null,"29º",null,null,null,null,null,null,"29º"]
["30º","MAESTRO","CH FAMÍLIA MINGAL","PARAÍBA DO SUL",95,null,null,"30º",null,null,null,null,null,null,"30º",null,null,null,null,null,null,"30º"]
["31º","ZÉ GATÃO","SAMIRIS CARDOSO","SÃO JOSÉ",93,null,null,"31º",null,null,null,null,null,null,"31º",null,null,null,null,null,null,"31º"]
["32º","RAMBO","HENRIQUE","ANTA",85,null,null,"32º",null,null,null,null,null,null,"32º",null,null,null,null,null,null,"32º"]
["33º","ESCOPETA","MANDÍBULA","PETRÓPOLIS",80,null,null,"33º",null,null,null,null,null,null,"33º",null,null,null,null,null,null,"33º"]
["34º","?","MATHEUS/DHACO","PARAÍBA DO SUL",80,null,null,"34º",null,null,null,null,null,null,"34º",null,null,null,null,null,null,"34º"]
["35º","MALUQUINHO","CLOVIS/RODRIGO","TRÊS RIOS",79,null,null,"35º",null,null,null,null,null,null,"35º",null,null,null,null,null,null,"35º"]
["36º","QUASE NADA","JEFFERSON","PARAÍBA DO SUL",44,null,null,"36º",null,null,null,null,null,null,"36º",null,null,null,null,null,null,"36º"]
["37º",null,null,null,null,null,null,"37º",null,null,null,null,null,null,"37º",null,null,null,null,null,null,"37º"]
["38º",null,null,null,null,null,null,"38º",null,null,null,null,null,null,"38º",null,null,null,null,null,null,"38º"]
["39º",null,null,null,null,null,null,"39º",null,null,null,null,null,null,"39º",null,null,null,null,null,null,"39º"]
["40º",null,null,null,null,null,null,"40º",null,null,null,null,null,null,"40º",null,null,null,null,null,null,"40º"]